bitfinex-derivatives/quotes_ETHF0:USTF0_20240822
["timestamp","ask_amount","ask_price","bid_price","bid_amount"]
[1724320196530,0.98965288,2628.2,2628.1,1.4764]
[1724320198439,0.98965288,2628.3,2628.2,0.38038]
[1724320199029,0.98965288,2628.3,2628.1,1.096]
[1724320199243,0.98965288,2628.2,2628.0,4.3038]
[1724320199536,0.3842,2628.1,2628.0,4.3038]
[1724320199837,0.7468,2628.1,2628.0,4.68421]
[1724320200334,0.3626,2628.1,2628.0,8.48901]
[1724320200535,0.98965288,2628.3,2628.0,8.1086]
[1724320200741,1.35225288,2628.3,2628.1,0.3804]
[1724320201142,1.35225288,2628.3,2628.2,0.3485]
[1724320202532,1.84853909,2628.3,2628.2,0.3485]
[1724320202734,2.03879018,2628.3,2628.2,0.3485]
[1724320202937,1.84853909,2628.3,2628.2,0.3485]
[1724320203138,2.03879014,2628.3,2628.2,0.3485]
[1724320203344,1.84853909,2628.3,2628.2,0.3485]
[1724320203533,1.84853909,2628.3,2628.2,0.72888]
[1724320203729,1.35220315,2628.3,2628.2,0.72888]
[1724320204130,0.98960315,2628.3,2628.2,1.82488]
[1724320204336,0.98960315,2628.4,2628.3,0.38037]
[1724320206146,1.48593909,2628.5,2628.4,0.38035]
[1724320206440,0.19023704,2628.5,2628.4,0.38035]
[1724320207243,2.17148768,2628.5,2628.4,0.38035]
[1724320207943,0.19023704,2628.5,2628.4,0.38035]
[1724320208433,2.17148768,2628.5,2628.4,0.38035]
[1724320209039,0.19023704,2628.5,2628.4,0.38035]
[1724320209242,0.38035,2628.4,2628.0,4.20330551]
[1724320209442,1.48676763,2628.1,2628.0,4.20330551]
[1724320209632,1.28625552,2628.1,2627.9,1.35783005]
[1724320209841,1.4867688,2628.1,2628.0,0.99550551]
[1724320210541,0.19025164,2628.1,2627.9,2.45383005]
[1724320210741,1.48668977,2628.0,2627.9,2.45383005]
[1724320210935,1.48668977,2628.0,2627.9,4.35639213]
[1724320211242,1.48668977,2628.0,2627.9,2.45383005]
[1724320211633,1.85408977,2628.0,2627.9,2.45383005]
[1724320211833,2.04434819,2628.0,2627.9,0.00922454]
[1724320212131,2.54001526,2628.0,2627.9,0.00922454]
[1724320212436,3.63601526,2628.0,2627.9,0.00922454]
[1724320213335,2.54001526,2628.0,2627.9,0.00922454]
[1724320213933,2.54003024,2628.0,2627.9,0.00922454]
[1724320216648,0.5576734,2628.0,2627.9,0.00922454]
[1724320217343,2.54003024,2628.0,2627.9,0.00922454]
[1724320217538,0.5576734,2628.0,2627.9,0.00922454]
[1724320217843,1.6536734,2628.0,2627.9,0.00922454]
[1724320218149,3.63603024,2628.0,2627.9,0.00922454]
[1724320218440,1.6536734,2628.0,2627.9,0.00922454]
[1724320218831,1.4634,2628.0,2627.9,0.00922454]
[1724320219440,3.63603154,2628.0,2627.9,0.00922454]
[1724320220940,0.38045,2627.7,2627.6,0.99550551]
[1724320221142,1.47645,2627.7,2627.6,0.99550551]
[1724320221339,5.28205,2627.7,2627.6,0.99550551]
[1724320221846,5.28205,2627.7,2627.6,0.99842489]
[1724320223442,10.28205,2627.7,2627.6,0.00291938]
[1724320224743,4.9016,2627.7,2627.6,0.00291938]
[1724320224939,4.9016,2627.7,2627.6,0.38338938]
[1724320225140,9.9016,2627.7,2627.6,0.38338938]
[1724320225439,9.9016,2627.7,2627.6,0.00291938]
[1724320225743,10.28205,2627.7,2627.6,0.00291938]
[1724320227144,0.38048,2627.5,2627.4,0.00570657]
[1724320227344,0.95125,2627.4,2626.6,3.58906926]
[1724320227647,1.47657,2626.9,2626.8,4.61538395]
[1724320228144,5.28377,2626.9,2626.8,4.61828422]
[1724320228347,8.49157,2626.9,2626.8,1.99735567]
[1724320228654,9.19727,2626.9,2626.8,1.99735567]
[1724320231846,15.1487,2626.9,2626.8,1.99735567]
[1724320232055,9.19727,2626.9,2626.8,1.99735567]
[1724320232551,9.19727,2626.9,2626.8,0.00290027]
[1724320235854,8.4664,2626.9,2626.8,0.38348027]
[1724320236054,4.3038,2626.9,2626.8,0.38348027]
[1724320236752,13.49157,2626.9,2626.8,0.00290027]
[1724320236960,0.3806,2626.7,2626.5,0.75672]
[1724320237148,1.096,2626.6,2626.5,0.3761]
[1724320237658,4.9032,2626.6,2626.5,0.3761]
[1724320237852,1.09924806,2626.6,2626.5,0.76116772]
[1724320238254,1.47985806,2626.6,2626.5,0.00445772]
[1724320238458,1.85685806,2626.6,2626.5,0.00445772]
[1724320238756,1.47624806,2626.6,2626.5,0.00445772]
[1724320238959,5.66405806,2626.6,2626.5,0.00445772]
[1724320239555,5.63424806,2626.6,2626.5,0.00445772]
[1724320240353,0.00324806,2626.6,2626.5,0.38508772]
[1724320244562,0.00324806,2626.6,2626.5,0.00445772]
[1724320244756,0.76795806,2626.6,2626.5,0.00445772]
[1724320245859,0.00324806,2626.6,2626.5,0.38508772]
[1724320246468,0.00324806,2626.6,2626.5,0.00445772]
[1724320247370,0.38385806,2626.6,2626.5,0.00445772]
[1724320247562,1.09775806,2626.6,2626.5,0.00445772]
[1724320248460,4.90495806,2626.6,2626.5,0.00445772]
[1724320249177,4.52434806,2626.6,2626.5,0.00445772]
[1724320249360,0.00324806,2626.6,2626.5,0.38508772]
[1724320250856,0.00324806,2626.6,2626.5,1.48108772]
[1724320251058,0.00324806,2626.6,2626.5,9.44766772]
[1724320251265,0.00570657,2627.1,2627.0,0.38056]
[1724320251769,1.10170657,2627.1,2626.9,0.38056]
[1724320252265,1.10591874,2627.1,2626.9,0.38056]
[1724320252466,1.096,2627.0,2626.9,0.38056]
[1724320254169,1.096,2627.0,2626.8,0.3791]
[1724320254368,1.096,2626.9,2626.8,0.3791]
[1724320254871,1.47657,2626.9,2626.8,0.3791]
[1724320256675,1.096,2626.9,2626.8,0.3791]
[1724320257364,1.47657,2626.9,2626.8,0.3791]
[1724320257565,1.096,2626.9,2626.8,0.3791]
[1724320259973,1.096,2626.9,2625.8,0.99367885]
[1724320259974,3.8072,2626.8,2625.8,0.99367885]
[1724320260274,3.2078,2625.9,2625.8,0.38073]
[1724320260570,1.096,2626.4,2625.8,1.096]
[1724320260767,1.096,2626.4,2626.1,0.38068]
[1724320261074,1.096,2626.4,2626.1,0.00310536]
[1724320261270,0.3803,2626.5,2626.1,0.38379536]
[1724320261271,1.096,2626.2,2626.1,0.38379536]
[1724320261475,1.096,2626.3,2626.1,0.38379536]
[1724320261775,1.096,2626.3,2626.1,0.00310536]
[1724320262071,1.096,2626.2,2626.1,0.00310536]
[1724320262573,2.08253605,2626.2,2626.1,0.00310536]
[1724320262770,3.2078,2626.3,2626.1,0.00310536]
[1724320262771,4.19433605,2626.3,2626.1,0.00310536]
[1724320263167,3.2078,2626.3,2626.2,1.47667]
[1724320263371,3.2078,2626.3,2626.2,1.096]
[1724320263567,4.19433605,2626.3,2626.2,4.904]
[1724320263966,4.19433605,2626.3,2626.2,6.6]
[1724320264375,4.19433605,2626.3,2626.2,10.408]
[1724320264571,4.68669281,2626.3,2626.2,10.408]
[1724320265270,4.68669281,2626.3,2626.2,11.1441]
[1724320266169,4.68669281,2626.3,2626.2,6.6]
[1724320266170,4.49420422,2626.3,2626.2,6.6]
[1724320266370,5.97925051,2626.3,2626.2,6.9715]
[1724320266569,4.49420422,2626.3,2626.2,6.9715]
[1724320266762,5.97926799,2626.3,2626.2,6.9715]
[1724320267667,5.97926799,2626.3,2626.2,0.3715]
[1724320267978,5.97926799,2626.3,2626.1,0.00310536]
[1724320267979,4.49420422,2626.3,2626.1,0.00310536]
[1724320268175,2.05234278,2626.2,2626.1,6.60310536]
[1724320268570,5.85207538,2626.2,2626.1,0.00310536]
[1724320269368,5.85209318,2626.2,2626.1,0.00310536]
[1724320269574,7.83155004,2626.2,2626.1,0.00310536]
[1724320270170,12.83155004,2626.2,2626.1,0.00310536]
[1724320270381,1.096,2625.8,2625.4,1.47678]
[1724320270574,2.08534328,2625.7,2625.4,1.4569]
[1724320270773,0.98934328,2625.6,2625.4,1.4569]
[1724320271181,1.37010328,2625.6,2625.3,0.3727]
[1724320271373,4.19714328,2625.6,2625.3,1.47296131]
[1724320271687,5.29314328,2625.6,2625.3,1.47296131]
[1724320271879,5.67390328,2625.6,2625.3,1.47296131]
[1724320272071,0.3857,2625.5,2625.3,1.10026131]
[1724320272268,1.096,2625.4,2625.3,0.00426131]
[1724320273886,6.27493328,2625.4,2625.3,0.00426131]
[1724320274275,6.27349163,2625.4,2625.3,0.00426131]
[1724320274475,5.17694626,2625.4,2625.3,0.00426131]
[1724320275183,5.17694626,2625.4,2624.7,0.3482]
[1724320275184,0.38082,2625.2,2624.7,0.3482]
[1724320275387,3.5623,2625.3,2624.7,0.3482]
[1724320275584,3.2078,2625.3,2625.2,0.38082]
[1724320275784,3.2078,2625.6,2625.4,0.38078]
[1724320275983,3.2078,2625.6,2625.2,0.38082]
[1724320276283,0.378,2625.5,2625.2,0.38537362]
[1724320276781,0.378,2625.5,2625.2,0.00456362]
[1724320276983,0.378,2625.5,2625.2,0.38537362]
[1724320277192,0.378,2625.5,2625.3,0.3808]
[1724320278076,0.378,2625.5,2625.2,6.98336362]
[1724320278277,0.378,2625.5,2625.3,0.38079]
[1724320279982,0.378,2625.5,2625.4,0.38079]
[1724320280181,3.21236805,2625.6,2625.4,0.38079]
[1724320280778,3.21236805,2625.6,2625.5,0.38077]
[1724320280779,0.00456805,2625.6,2625.5,0.38077]
[1724320280979,0.00456805,2625.6,2625.5,4.18957]
[1724320281686,0.00570657,2625.8,2625.7,0.38074]
[1724320282083,0.00570657,2625.8,2625.7,4.18954]
[1724320282377,0.00570657,2625.8,2625.7,4.54604]
[1724320282581,3.2078,2626.3,2625.7,10.11717]
[1724320282582,3.5849,2626.3,2625.7,10.11717]
[1724320282783,3.58812459,2626.3,2626.2,0.38067]
[1724320282987,3.58812459,2626.3,2625.8,3.2078]
[1724320283181,3.21102459,2626.3,2626.1,0.38068]
[1724320285294,3.21102459,2626.3,2626.2,0.38067]
[1724320286386,3.21102459,2626.3,2625.9,0.3812]
[1724320286895,3.21102459,2626.3,2626.2,0.38067]
[1724320287589,0.00322459,2626.3,2626.2,0.38067]
[1724320291790,0.00322459,2626.3,2626.2,4.18867]
[1724320292587,0.00322459,2626.3,2626.2,7.39647]
[1724320292792,0.00322459,2626.3,2626.2,8.34816]
[1724320293198,0.00322459,2626.3,2626.2,7.39647]
[1724320293491,0.00322459,2626.3,2626.2,8.34816]
[1724320294796,0.00322459,2626.3,2626.2,7.39647]
[1724320295496,0.00322459,2626.3,2626.2,8.34816]
[1724320299992,0.00570657,2626.5,2626.2,8.34816]
[1724320299993,0.00570657,2626.5,2626.4,2.28386]
[1724320300191,0.3676,2626.8,2626.7,0.3806]
[1724320300389,0.3676,2626.8,2626.7,1.4766]
[1724320300598,0.371,2626.9,2626.8,0.38058]
[1724320300899,3.2078,2627.2,2627.1,0.38054]
[1724320300900,0.3773,2627.2,2627.1,0.38054]
[1724320301091,0.3773,2627.2,2627.1,1.47998836]
[1724320301092,0.38091309,2627.2,2627.1,1.47998836]
[1724320302398,0.38091309,2627.2,2627.1,0.38398836]
[1724320305603,0.38091309,2627.2,2627.1,1.33534836]
[1724320306303,0.38091309,2627.2,2627.1,5.14174836]
[1724320306905,0.38091309,2627.2,2627.1,4.19038836]
[1724320307205,0.38091309,2627.2,2627.1,0.00344836]
[1724320307506,0.76521309,2627.2,2627.1,0.00344836]
[1724320307800,0.76521309,2627.2,2627.1,0.38398836]
[1724320308793,0.76521309,2627.2,2627.1,0.00344836]
[1724320308999,0.76521309,2627.2,2627.1,0.38398836]
[1724320310808,0.38091309,2627.2,2627.1,0.38398836]
[1724320315010,0.38091309,2627.2,2627.1,5.14174836]
[1724320315797,0.00361309,2627.2,2627.1,5.14174836]
[1724320316201,0.00361309,2627.2,2627.1,5.61196975]
[1724320316599,0.00361309,2627.2,2627.1,4.19038836]
[1724320319895,0.00361309,2627.2,2627.1,0.38398836]
[1724320321015,0.00361309,2627.2,2627.1,1.33534836]
[1724320321216,0.00361309,2627.2,2627.1,5.14174836]
[1724320321605,0.71630657,2627.4,2627.3,1.3318]
[1724320321805,0.71630657,2627.4,2627.3,8.346]
[1724320322114,0.00570657,2627.4,2627.3,8.346]
[1724320322312,0.7204,2627.7,2627.6,0.38047]
[1724320322704,0.72414539,2627.7,2627.6,0.38047]
[1724320331118,1.71150165,2627.7,2627.1,4.19515493]
[1724320331322,0.38049,2627.5,2627.2,0.38053]
[1724320331511,0.38049,2627.5,2627.3,0.38051]
[1724320332010,4.19515626,2627.6,2627.1,4.19515493]
[1724320332208,0.38049,2627.5,2627.1,4.19515493]
[1724320332408,4.57563626,2627.6,2627.3,0.38051]
[1724320332619,0.98735626,2627.5,2627.3,0.38051]
[1724320332918,0.98735626,2627.5,2627.4,0.3805]
[1724320333309,4.79295626,2627.5,2627.4,0.3805]
[1724320334514,0.98735626,2627.6,2627.5,0.38048]
[1724320336908,2.20816031,2627.7,2627.2,3.9357]
[1724320336909,2.70283195,2627.7,2627.2,3.9357]
[1724320337119,3.39809791,2627.6,2627.5,0.38048]
[1724320337516,5.3767873,2627.6,2627.5,0.38048]
[1724320338418,3.39810074,2627.6,2627.5,0.38048]
[1724320338617,5.3767873,2627.6,2627.5,0.38048]
[1724320338922,4.1975957,2627.6,2627.5,0.38048]
[1724320339314,3.2078,2627.6,2627.5,0.38048]
[1724320339512,4.1975957,2627.6,2627.5,0.38048]
[1724320340710,3.2078,2627.6,2627.5,0.38048]
[1724320341506,1.71394109,2627.7,2627.6,0.38047]
[1724320341718,4.92174109,2627.7,2627.6,0.38047]
[1724320342021,9.7929912,2627.7,2627.5,0.38047]
[1724320342221,5.79709895,2627.7,2627.6,0.38047]
[1724320342409,5.98739875,2627.7,2627.6,0.38047]
[1724320342611,8.30830519,2627.7,2627.6,0.38047]
[1724320343412,7.92784519,2627.7,2627.2,3.5823]
[1724320343613,0.99075217,2627.5,2627.2,3.5823]
[1724320343813,0.99075217,2627.5,2627.4,0.3805]
[1724320344823,1.48612825,2627.6,2627.5,0.38048]
[1724320345012,1.67642474,2627.6,2627.5,0.38048]
[1724320345418,1.48612825,2627.6,2627.5,0.38048]
[1724320345620,5.91063195,2627.7,2627.6,0.38047]
[1724320345816,6.10092403,2627.7,2627.6,0.38047]
[1724320346020,7.05659458,2627.7,2627.6,0.38047]
[1724320346322,7.06292649,2627.7,2627.6,0.38047]
[1724320346519,4.58323637,2627.7,2627.6,0.38047]
[1724320346927,4.31239539,2627.7,2627.6,0.38047]
[1724320347120,4.96375884,2627.7,2627.6,0.38047]
[1724320348524,4.96375884,2627.7,2627.6,1.47647]
[1724320348726,4.96381875,2627.7,2627.6,1.47647]
[1724320349227,8.76941875,2627.7,2627.6,1.47647]
[1724320351229,8.38896875,2627.7,2627.6,1.47647]
[1724320351731,4.58332514,2627.7,2627.6,1.47647]
[1724320351927,3.13577745,2627.7,2627.6,7.18443]
[1724320352123,1.49224683,2627.7,2627.6,7.90933]
[1724320352517,0.99594899,2627.7,2627.6,12.11080885]
[1724320352724,0.00374539,2627.7,2627.6,12.11080885]
[1724320352928,0.00374539,2627.7,2627.6,14.01332536]
[1724320353123,0.00374539,2627.7,2627.6,12.06846651]
[1724320353324,0.00374539,2627.7,2627.6,13.06541863]
[1724320353531,0.00374539,2627.7,2627.6,11.16290212]
[1724320353927,0.00374539,2627.7,2627.6,13.55899053]
[1724320354137,0.00570657,2627.9,2627.8,0.38044]
[1724320354431,0.00570657,2627.9,2627.8,4.91296226]
[1724320354621,0.9922036,2628.2,2627.8,15.78431327]
[1724320354819,1.48850144,2628.3,2627.8,15.78431327]
[1724320354820,0.9922036,2628.3,2628.2,0.38038]
[1724320355018,0.9922036,2628.4,2628.3,0.38037]
[1724320355225,0.99511904,2628.4,2628.3,0.38037]
[1724320355427,0.00291544,2628.4,2628.3,0.38037]
[1724320357531,0.00291544,2628.4,2628.3,4.18517]
[1724320359730,0.00291544,2628.4,2628.3,0.38037]
[1724320360432,0.00291544,2628.4,2628.2,0.38037]
[1724320361335,0.35361544,2628.4,2628.2,0.38037]
[1724320361924,0.35361544,2628.4,2628.3,0.38037]
[1724320364937,0.35361544,2628.4,2627.9,4.31325]
[1724320364938,0.35361544,2628.4,2628.2,0.38038]
[1724320365234,0.35361544,2628.4,2628.2,0.38037]
[1724320366641,0.35361544,2628.4,2628.3,0.38037]
[1724320371949,0.00291544,2628.4,2628.3,0.38037]
[1724320374146,0.00291544,2628.4,2628.2,0.38037]
[1724320374651,0.00291544,2628.4,2628.3,0.38037]
[1724320376348,0.00291544,2628.4,2628.2,0.38037]
[1724320376652,0.00291544,2628.4,2628.1,2.63]
[1724320376848,0.00291544,2628.4,2628.3,0.38037]
[1724320380446,0.00291544,2628.4,2628.3,1.47637]
[1724320382445,0.00291544,2628.4,2628.3,0.38037]
[1724320382643,0.00291544,2628.4,2628.3,1.47637]
[1724320386847,0.00291544,2628.4,2628.3,6.2321]
[1724320388267,0.00291544,2628.4,2628.3,5.28117]
[1724320388661,0.00090356,2628.4,2628.3,6.2321]
[1724320388851,0.00570657,2628.6,2628.5,0.38034]
[1724320389048,0.00570657,2628.6,2628.5,1.47634]
[1724320389253,0.00570657,2628.6,2628.5,5.28034]
[1724320389750,0.00949294,2628.6,2628.5,5.28034]
[1724320391662,0.00949294,2628.6,2628.5,11.23119]
[1724320391863,1.7335036,2629.2,2629.0,1.096]
[1724320392759,1.73630537,2629.2,2629.0,1.0993198]
[1724320393362,2.11654537,2629.2,2629.0,1.0993198]
[1724320393761,0.9922036,2629.1,2629.0,1.0993198]
[1724320394060,2.11654537,2629.2,2629.0,1.4795798]
[1724320394466,0.9922036,2629.1,2629.0,1.4795798]
[1724320395263,2.11654537,2629.2,2629.0,1.4795798]
[1724320395470,0.9922036,2629.1,2629.0,1.4795798]
[1724320397059,1.73630537,2629.2,2629.1,0.38025]
[1724320397465,2.23260321,2629.2,2629.1,0.38025]
[1724320398267,0.74410177,2629.2,2629.1,0.38025]
[1724320398465,2.23260321,2629.2,2629.1,0.38025]
[1724320399565,1.73627281,2629.2,2629.1,0.38025]
[1724320403769,0.74410177,2629.2,2629.1,0.38025]
[1724320404760,1.73627281,2629.2,2629.1,0.38025]
[1724320405164,0.74410177,2629.2,2629.1,0.38025]
[1724320406466,1.73627281,2629.2,2629.1,0.38025]
[1724320406662,0.74410177,2629.2,2629.1,0.38025]
[1724320410371,0.74410177,2629.2,2629.1,1.33089]
[1724320410574,0.00280177,2629.2,2629.1,1.33089]
[1724320411373,0.00280177,2629.2,2629.1,5.13409]
[1724320414569,0.00280177,2629.2,2629.1,6.08473]
[1724320417475,0.00570657,2629.4,2629.3,0.38022]
[1724320417673,0.00570657,2629.4,2629.3,1.47622]
[1724320417874,0.00570657,2629.4,2629.3,6.60339]
[1724320418379,0.00570657,2629.4,2629.3,5.65282]
[1724320418569,0.0092739,2629.4,2629.3,5.65282]
[1724320419078,0.0092739,2629.4,2629.3,5.27942]
[1724320419276,0.0092739,2629.4,2629.3,1.47622]
[1724320420369,0.0092739,2629.4,2629.0,0.47627147]
[1724320420569,3.5972839,2629.4,2629.3,1.096]
[1724320420976,8.39265494,2629.4,2629.3,1.096]
[1724320421473,8.88898534,2629.4,2629.3,1.096]
[1724320423167,7.0202739,2629.4,2629.3,1.096]
[1724320423378,8.50877534,2629.4,2629.3,1.096]
[1724320425283,5.30097534,2629.4,2629.3,1.096]
[1724320425474,5.49114587,2629.4,2629.3,1.096]
[1724320426287,5.49114495,2629.4,2629.3,1.096]
[1724320427182,4.00264351,2629.4,2629.3,1.096]
[1724320427391,5.49036096,2629.4,2629.3,1.096]
[1724320427885,5.49034877,2629.4,2629.3,1.096]
[1724320428082,4.00264351,2629.4,2629.3,1.096]
[1724320428480,5.30042609,2629.4,2629.3,1.096]
[1724320428683,5.30042609,2629.4,2629.3,1.47622]
[1724320429186,5.30042609,2629.4,2629.3,1.096]
[1724320429485,5.30042609,2629.4,2629.3,1.47622]
[1724320430785,1.49722609,2629.4,2629.3,1.47622]
[1724320430987,5.30042609,2629.4,2629.3,1.47622]
[1724320431186,1.49722609,2629.4,2629.3,1.47622]
[1724320431384,1.49722609,2629.4,2629.3,1.83062]
[1724320433281,1.49722609,2629.4,2629.3,1.47622]
[1724320433889,1.68739161,2629.4,2629.3,1.47622]
[1724320434089,1.68739163,2629.4,2629.3,1.47622]
[1724320434293,4.00263944,2629.4,2629.3,1.096]
[1724320434495,4.00263944,2629.4,2629.0,0.0033198]
[1724320434496,10.98728245,2629.4,2629.0,0.0033198]
[1724320434688,1.37387144,2629.1,2629.0,1.0993198]
[1724320434888,0.57041554,2629.1,2629.0,1.0993198]
[1724320435087,2.92825855,2629.1,2629.0,1.0993198]
[1724320435792,0.56336554,2629.1,2629.0,1.0993198]
[1724320436296,4.74761554,2629.1,2629.0,1.0993198]
[1724320436893,4.36736554,2629.1,2629.0,1.0993198]
[1724320437297,4.36736554,2629.1,2629.0,0.0033198]
[1724320437298,6.35200855,2629.1,2629.0,0.0033198]
[1724320437599,4.74761554,2629.1,2629.0,0.0033198]
[1724320437799,10.86980276,2629.1,2628.8,0.00570657]
[1724320438001,5.19482601,2628.9,2628.8,1.10170657]
[1724320438196,9.18857176,2628.9,2628.8,1.10170657]
[1724320438503,9.18857176,2628.9,2628.3,0.72748102]
[1724320438504,3.804,2628.8,2628.3,0.72748102]
[1724320438696,3.804,2628.8,2627.5,1.096]
[1724320438697,7.27382753,2628.4,2627.5,1.096]
[1724320438903,1.48949549,2627.6,2627.4,0.38049]
[1724320439201,0.99298327,2627.7,2627.5,0.38048]
[1724320439795,0.99298327,2627.7,2627.5,0.38478117]
[1724320439995,0.99298327,2627.7,2627.5,0.00430117]
[1724320440305,0.99298327,2627.7,2627.6,1.096]
[1724320440503,0.99298327,2627.7,2627.5,0.00430117]
[1724320440695,0.99298327,2627.7,2627.5,0.38478117]
[1724320440890,0.99298327,2627.7,2627.5,0.00430117]
[1724320441390,0.99298327,2627.7,2627.5,0.38478117]
[1724320441597,4.20078327,2627.8,2627.5,0.38478117]
[1724320441793,4.20078327,2627.8,2627.5,0.00430117]
[1724320441996,0.3501,2627.7,2627.5,0.00430117]
[1724320442504,0.3501,2627.7,2627.5,0.38478117]
[1724320442900,0.3501,2627.7,2627.5,0.00430117]
[1724320443895,0.3501,2627.7,2627.5,0.38478117]
[1724320444100,0.3501,2627.7,2627.5,0.00430117]
[1724320446215,0.3501,2627.7,2627.5,0.37810117]
[1724320447210,0.3501,2627.7,2627.5,0.75858117]
[1724320450807,3.2078,2627.8,2627.6,0.38047]
[1724320454312,3.2078,2627.8,2627.7,0.38045]
[1724320459111,3.58824,2627.8,2627.7,0.38045]
[1724320459309,3.2078,2627.8,2627.7,0.38045]
[1724320464119,4.3038,2627.8,2627.7,0.38045]
[1724320464719,3.2078,2627.8,2627.7,0.38045]
[1724320466809,3.2078,2627.8,2627.7,1.47645]
[1724320467114,3.2078,2627.8,2627.7,6.23319]
[1724320467317,0.00570657,2627.9,2627.8,0.38044]
[1724320467509,0.00570657,2627.9,2627.8,1.85844]
[1724320478121,0.38613657,2627.9,2627.8,1.85844]
[1724320478322,0.00570657,2627.9,2627.8,1.85844]
[1724320481326,0.99868984,2627.9,2627.8,1.85844]
[1724320482129,1.49520206,2627.9,2627.8,1.85844]
[1724320482429,0.99238517,2628.0,2627.9,2.28257]
[1724320482721,0.99238517,2628.2,2628.1,1.3314]
[1724320483028,0.99238517,2628.3,2628.2,0.38038]
[1724320483328,1.67973043,2628.3,2628.2,0.38038]
[1724320483530,1.67973043,2628.3,2628.2,0.72798]
[1724320483832,2.06010043,2628.3,2628.2,0.72798]
[1724320484021,0.57060494,2628.3,2628.2,0.72798]
[1724320484220,0.94900494,2628.3,2628.2,0.72798]
[1724320484524,2.93688616,2628.3,2628.2,0.72798]
[1724320484727,0.94900494,2628.3,2628.2,0.72798]
[1724320486428,2.93637921,2628.3,2628.2,0.3476]
[1724320486731,0.3804,2628.1,2628.0,1.4764]
[1724320486916,1.87092004,2628.1,2628.0,1.4764]
[1724320487116,0.38041,2628.0,2627.9,1.096]
[1724320487330,1.87093004,2628.0,2627.8,2.82877442]
[1724320487523,0.99370401,2627.9,2627.8,3.20920442]
[1724320489528,0.99370401,2627.9,2627.8,2.21243]
[1724320496634,0.99370401,2627.9,2627.8,3.20920442]
[1724320497136,0.99370401,2627.9,2627.8,2.21243]
[1724320498521,1.49052004,2628.0,2627.9,0.38043]
[1724320498719,1.68078633,2628.0,2627.9,1.47643]
[1724320499130,1.49052004,2628.0,2627.9,1.47643]
[1724320500124,0.95108,2627.9,2627.6,0.99677442]
[1724320500330,0.38047,2627.6,2627.5,1.00107559]
[1724320500543,0.38047,2627.6,2627.5,0.00430117]
[1724320500544,3.81414249,2627.6,2627.5,0.00430117]
[1724320500731,11.15825408,2627.6,2627.5,0.00430117]
[1724320502230,12.68792333,2627.6,2627.5,0.00430117]
[1724320502632,2.52619601,2627.6,2627.5,0.38478117]
[1724320503830,2.52619601,2627.6,2627.5,0.74138117]
[1724320503831,0.54139234,2627.6,2627.5,0.74138117]
[1724320504223,1.48857281,2627.6,2627.5,1.83738117]
[1724320505343,1.48857281,2627.6,2627.3,0.95697657]
[1724320505344,1.9025,2627.4,2627.3,0.00570657]
[1724320505545,0.95131,2627.3,2625.9,1.44738099]
[1724320505842,0.99178049,2626.2,2626.1,1.096]
[1724320506029,0.99178049,2626.3,2626.2,0.38067]
[1724320506227,4.19958049,2626.5,2626.2,0.3598]
[1724320506425,4.19958049,2626.5,2626.4,0.38064]
[1724320506426,0.00285548,2626.5,2626.4,0.38064]
[1724320506639,0.00285548,2626.5,2626.4,0.74294]
[1724320511441,0.00285548,2626.5,2626.4,0.3623]
[1724320511636,0.00285548,2626.5,2626.4,0.74294]
[1724320512031,0.00285548,2626.5,2626.4,0.3623]
[1724320512232,0.00285548,2626.5,2626.4,0.74294]
[1724320512642,0.00285548,2626.5,2626.4,0.3623]
[1724320513033,0.00285548,2626.5,2626.4,0.74294]
[1724320515834,0.00285548,2626.5,2626.4,4.55014]
[1724320516936,0.00570657,2626.6,2626.5,0.38063]
[1724320517235,3.2078,2626.7,2626.6,0.38061]
[1724320517434,3.2078,2626.7,2626.6,4.18781]
[1724320517846,0.38056,2627.0,2626.7,0.38059]
[1724320518040,0.38393491,2627.0,2626.7,0.38059]
[1724320518345,0.00337491,2627.0,2626.8,0.38058]
[1724320518742,0.38393491,2627.0,2626.8,0.38058]
[1724320520145,0.38393491,2627.0,2626.9,0.3562]
[1724320521939,3.59173491,2627.0,2626.9,0.3562]
[1724320524650,3.59173491,2627.0,2626.9,0.7163]
[1724320524839,3.59173491,2627.0,2626.9,1.0885]
[1724320526639,3.59173491,2627.0,2626.9,1.46907]
[1724320527147,3.59173491,2627.0,2626.9,1.0885]
[1724320528749,3.59173491,2627.0,2626.9,1.46907]
[1724320528939,3.59173491,2627.0,2626.9,1.0885]
[1724320530447,4.68873491,2627.0,2626.9,1.0885]
[1724320533752,0.00337491,2627.0,2626.9,6.37247]
[1724320534051,0.00570657,2627.1,2627.0,0.38056]
[1724320534437,0.00570657,2627.1,2627.0,4.18696]
[1724320534840,0.00945314,2627.1,2627.0,4.18696]
[1724320536871,0.99178049,2627.9,2627.0,12.0142]
[1724320537155,1.37217049,2628.2,2627.8,1.47743]
[1724320537342,4.68517,2628.3,2628.0,1.097]
[1724320537542,3.58817,2628.3,2628.1,0.3685]
[1724320537745,1.097,2628.2,2628.1,0.37180542]
[1724320537948,1.47738,2628.2,2628.1,0.37180542]
[1724320538444,0.38038,2628.2,2628.1,0.00330542]
[1724320544045,1.37216049,2628.2,2628.1,0.00330542]
[1724320544456,0.99178049,2628.2,2628.1,0.00330542]
[1724320544756,1.37216049,2628.2,2628.1,0.00330542]
[1724320546353,0.99178049,2628.2,2628.1,0.38370542]
[1724320546764,4.58443965,2628.3,2628.1,0.38370542]
[1724320547061,0.99178049,2628.2,2628.1,0.38370542]
[1724320547253,4.58442965,2628.3,2628.1,0.38370542]
[1724320547454,0.99178049,2628.2,2628.1,0.38370542]
[1724320547749,4.58442965,2628.3,2628.1,0.38370542]
[1724320548256,4.20405965,2628.3,2628.2,0.38038]
[1724320548451,4.20405965,2628.3,2628.2,0.75948]
[1724320548651,3.21227916,2628.3,2628.2,0.75948]
[1724320553869,0.00447916,2628.3,2628.2,0.75948]
[1724320554167,3.21227916,2628.3,2628.2,0.75948]
[1724320555359,3.59264916,2628.3,2628.2,0.75948]
[1724320555560,3.21227916,2628.3,2628.2,0.75948]
[1724320556974,3.59264916,2628.3,2628.2,0.75948]
[1724320557269,3.21227916,2628.3,2628.2,0.75948]
[1724320559572,0.00447916,2628.3,2628.2,0.75948]
[1724320559873,3.21227916,2628.3,2628.2,0.75948]
[1724320560468,4.68864916,2628.3,2628.2,0.3791]